bitfinex-derivatives/quotes_ETHF0:USTF0_20230402
["timestamp","ask_amount","ask_price","bid_price","bid_amount"]
[1680474066447,1.118,1779.6,1779.3,3.2078]
[1680474067246,1.118,1779.6,1779.5,3.2078]
[1680474067544,1.118,1779.8,1779.5,3.2078]
[1680474068447,0.6843099,1779.7,1779.5,3.2078]
[1680474072143,1.8023099,1779.7,1779.5,3.2078]
[1680474073046,0.6843099,1779.7,1779.5,3.2078]
[1680474073444,1.124,1779.9,1779.5,3.2078]
[1680474074845,1.124,1779.9,1779.4,1.115]
[1680474074846,1.124,1779.9,1779.7,3.2078]
[1680474075149,1.67640091,1780.3,1779.8,2.119]
[1680474075349,1.67640091,1780.3,1780.0,3.2078]
[1680474075640,1.67640091,1780.3,1779.8,2.119]
[1680474075641,1.67640091,1780.3,1779.8,4.3268]
[1680474076235,1.118,1780.3,1779.8,4.3268]
[1680474076638,1.118,1780.3,1780.0,3.2078]
[1680474077040,5.20907358,1780.6,1780.2,3.2078]
[1680474077041,0.56917223,1780.4,1780.2,3.2078]
[1680474077244,1.124,1780.4,1780.2,3.2078]
[1680474077446,1.124,1780.4,1780.0,3.2078]
[1680474077643,1.124,1780.2,1779.8,3.2078]
[1680474078244,1.119,1779.9,1779.6,3.2078]
[1680474078439,2.119,1779.9,1779.6,3.2078]
[1680474078642,1.119,1779.9,1779.6,3.2078]
[1680474078950,1.124,1780.0,1779.6,3.2078]
[1680474079150,0.58218238,1780.3,1779.8,3.2078]
[1680474079350,1.124,1780.2,1779.8,3.2078]
[1680474079647,1.116,1780.2,1779.8,3.2078]
[1680474080346,1.116,1780.2,1780.0,3.2078]
[1680474082746,1.116,1780.3,1780.0,3.2078]
[1680474083441,0.51563648,1780.2,1780.0,3.2078]
[1680474084153,1.117,1780.1,1780.0,3.2078]
[1680474084349,1.117,1780.1,1779.6,2.122]
[1680474084350,1.117,1780.1,1779.6,4.3298]
[1680474086546,1.117,1780.1,1779.7,1.0]
[1680474086857,1.117,1780.1,1779.8,3.2078]
[1680474088457,0.51563648,1780.2,1779.8,4.3288]
[1680474089658,1.116,1780.1,1779.8,3.2078]
[1680474092455,0.51563648,1780.2,1780.0,3.2078]
[1680474101562,1.114,1780.4,1780.0,3.2078]
[1680474101757,0.36506839,1780.1,1780.0,3.2078]
[1680474101957,1.114,1780.4,1780.0,3.2078]
[1680474102157,1.114,1780.4,1780.2,3.2078]
[1680474102359,1.69618238,1780.4,1780.2,3.2078]
[1680474102852,1.123,1780.3,1780.2,3.2078]
[1680474104566,0.58218238,1780.4,1780.2,3.2078]
[1680474105466,1.45545596,1780.4,1780.2,3.2078]
[1680474105763,0.58218238,1780.4,1780.2,3.2078]
[1680474106861,1.69818238,1780.5,1780.2,3.2078]
[1680474107168,1.69818238,1780.5,1780.4,3.2078]
[1680474107861,1.116,1780.5,1780.4,3.2078]
[1680474108061,0.58218238,1780.7,1780.4,4.3308]
[1680474108372,0.58218238,1780.8,1780.6,3.2078]
[1680474109569,2.45545596,1780.9,1780.6,3.2078]
[1680474110170,0.58218238,1780.8,1780.6,3.2078]
[1680474110370,1.58218238,1780.8,1780.6,3.2078]
[1680474110563,0.58218238,1780.8,1780.6,3.2078]
[1680474110870,1.58218238,1780.9,1780.6,3.2078]
[1680474111264,1.114,1780.7,1780.2,0.87772161]
[1680474111470,1.123,1780.3,1780.1,3.2078]
[1680474112167,1.114,1780.4,1780.1,3.2078]
[1680474113162,1.114,1780.4,1780.3,3.2078]
[1680474113360,2.69518238,1780.6,1780.3,3.2078]
[1680474113558,0.35006051,1780.4,1780.3,3.2078]
[1680474113761,1.0,1780.5,1780.1,4.3308]
[1680474113969,1.123,1780.4,1780.1,3.2078]
[1680474114669,1.123,1780.4,1780.0,1.58689029]
[1680474114969,1.123,1780.4,1780.3,3.2078]
[1680474115172,1.123,1780.4,1780.1,3.79469029]
[1680474115962,1.123,1780.4,1780.1,3.2078]
[1680474118873,1.123,1780.4,1780.1,3.79469029]
[1680474120173,0.58218238,1780.6,1780.3,3.2078]
[1680474120465,0.58218238,1780.8,1780.4,0.58689029]
[1680474120667,0.58218238,1780.8,1780.5,3.2078]
[1680474120867,1.123,1780.8,1780.7,3.2078]
[1680474121973,0.58218238,1781.0,1780.7,4.3308]
[1680474122173,0.58218238,1781.0,1780.9,3.2078]
[1680474123184,0.58218238,1781.1,1780.9,3.2078]
[1680474123475,3.37577861,1781.3,1781.0,0.10615273]
[1680474123476,1.14523448,1781.3,1781.0,0.10615273]
[1680474123676,1.14523448,1781.3,1781.1,3.2078]
[1680474124074,0.58218238,1781.3,1781.1,4.3278]
[1680474124375,2.38389708,1781.4,1781.1,4.3278]
[1680474124582,0.58218238,1781.3,1781.1,3.2078]
[1680474124982,3.50089708,1781.4,1781.1,3.2078]
[1680474125580,1.122,1781.2,1781.1,3.2078]
[1680474128585,1.122,1781.2,1781.1,3.29656718]
[1680474129587,1.122,1781.2,1781.1,3.28980268]
[1680474133681,2.05044112,1781.4,1781.1,3.28980268]
[1680474135389,2.05044112,1781.4,1781.3,3.2078]
[1680474138593,2.05044112,1781.4,1781.1,3.2078]
[1680474139097,2.05044112,1781.4,1781.2,0.08837212]
[1680474139593,2.05044112,1781.4,1781.1,3.2078]
[1680474139993,2.05044112,1781.4,1781.2,0.08833335]
[1680474140492,2.05044112,1781.4,1781.1,3.2078]
[1680474140790,2.05044112,1781.4,1781.2,0.08830437]
[1680474140991,2.05044112,1781.4,1781.1,3.2078]
[1680474141193,2.05044112,1781.4,1781.2,0.08828706]
[1680474141494,2.05044112,1781.4,1781.1,3.2078]
[1680474141793,2.05044112,1781.4,1781.2,0.08826808]
[1680474141993,1.122,1781.3,1781.1,3.2078]
[1680474142288,3.05044112,1781.4,1781.2,0.08824937]
[1680474142487,2.117,1781.3,1780.8,3.2078]
[1680474142687,1.116,1781.1,1780.8,3.2078]
[1680474142887,1.116,1781.1,1780.9,0.07690786]
[1680474143289,1.116,1781.1,1780.8,3.2078]
[1680474143493,1.116,1781.1,1781.0,0.07687937]
[1680474143695,1.116,1781.1,1780.8,3.2078]
[1680474145597,2.122,1781.3,1780.8,4.3278]
[1680474145799,2.122,1781.3,1781.0,3.2078]
[1680474145991,1.122,1781.3,1781.0,3.2078]
[1680474146196,1.70418238,1781.3,1781.0,3.2078]
[1680474147499,1.70418238,1781.3,1780.8,4.3278]
[1680474147695,1.0,1781.2,1780.8,4.3278]
[1680474148394,1.0,1781.2,1781.0,3.2078]
[1680474148594,2.70418238,1781.3,1781.0,3.2078]
[1680474148899,1.0,1781.2,1780.8,4.3278]
[1680474149602,2.70418238,1781.3,1781.0,3.2078]
[1680474150296,2.70418238,1781.3,1780.8,4.3278]
[1680474150501,1.70418238,1781.3,1781.0,3.2078]
[1680474151198,2.57745596,1781.3,1781.0,3.2078]
[1680474151699,0.58218238,1781.2,1781.0,3.2078]
[1680474153691,6.122,1781.1,1780.6,0.58689029]
[1680474153903,6.122,1781.1,1780.3,8.00936371]
[1680474153904,1.122,1780.7,1780.3,9.6537119]
[1680474154097,1.122,1780.7,1780.3,4.6724119]
[1680474154300,1.122,1780.7,1780.3,4.91669029]
[1680474154501,1.122,1780.9,1780.4,1.12]
[1680474154694,2.122,1780.9,1780.4,1.12]
[1680474154897,1.122,1780.9,1780.5,3.2078]
[1680474155696,2.122,1780.9,1780.5,3.2078]
[1680474156104,3.26812615,1780.9,1780.5,3.2078]
[1680474156300,6.47592615,1780.9,1780.5,3.2078]
[1680474156797,1.122,1780.7,1780.3,4.91669029]
[1680474156999,1.122,1780.7,1780.3,4.3298]
[1680474158005,2.116,1780.6,1780.1,5.7944119]
[1680474158199,1.122,1780.4,1780.0,0.58689029]
[1680474158704,0.2955716,1780.3,1779.9,4.91669029]
[1680474159096,0.2955716,1780.3,1779.9,5.7944119]
[1680474159297,0.2955716,1780.3,1780.0,1.58689029]
[1680474159708,0.2955716,1780.3,1780.1,3.2078]
[1680474160406,0.2955716,1780.3,1780.0,1.58689029]
[1680474160407,0.2955716,1780.3,1780.0,0.58689029]
[1680474161603,0.2955716,1780.3,1780.0,1.0]
[1680474161809,0.2955716,1780.3,1780.0,1.58689029]
[1680474162007,0.2955716,1780.3,1780.0,2.70289029]
[1680474163208,0.2955716,1780.3,1780.1,3.2078]
[1680474163402,0.2955716,1780.3,1780.2,1.0]
[1680474164901,0.2955716,1780.3,1780.2,1.58689029]
[1680474165106,1.123,1780.6,1780.2,0.58689029]
[1680474165307,1.123,1780.6,1780.3,3.2078]
[1680474171107,1.14612615,1780.9,1780.5,4.3308]
[1680474171308,0.56394377,1780.9,1780.6,1.119]
[1680474171514,0.58218238,1781.0,1780.6,1.119]
[1680474171718,1.45545596,1781.0,1780.6,1.119]
[1680474172115,3.57845596,1781.0,1780.5,4.3308]
[1680474172310,2.57845596,1781.0,1780.5,4.3308]
[1680474172617,4.14872453,1781.0,1780.5,4.3308]
[1680474173413,3.14872453,1781.0,1780.5,4.3308]
[1680474173810,2.27545095,1781.0,1780.5,4.3308]
[1680474174117,2.27545095,1781.0,1780.7,3.2078]
[1680474175414,0.57026857,1781.0,1780.8,1.119]
[1680474175620,1.45545596,1781.2,1780.8,2.119]
[1680474175820,0.58218238,1781.1,1780.8,1.119]
[1680474176422,0.58218238,1781.2,1780.8,1.119]
[1680474178630,2.70518238,1781.2,1780.7,4.3308]
[1680474179319,1.112,1781.0,1780.6,0.58689029]
[1680474179519,1.69418238,1781.0,1780.5,4.91769029]
[1680474182012,0.58218238,1781.0,1780.6,1.123]
[1680474184523,1.14787991,1781.0,1780.6,1.123]
[1680474186025,1.14787991,1781.0,1780.7,3.2078]
[1680474189319,1.14787991,1781.0,1780.8,1.114]
[1680474189320,0.58218238,1781.0,1780.8,1.114]
[1680474189521,1.45545596,1781.1,1780.9,3.38241707]
[1680474189726,0.58218238,1781.2,1780.9,4.38241707]
[1680474189927,0.58218238,1781.2,1781.0,1.0]
[1680474190223,0.58218238,1781.2,1780.9,4.38241707]
[1680474190418,0.58218238,1781.2,1781.0,1.0]
[1680474190618,0.58218238,1781.2,1780.9,4.38241707]
[1680474191127,0.58218238,1781.2,1780.9,3.38241707]
[1680474192827,0.58218238,1781.2,1780.9,0.17461707]
[1680474193027,0.58218238,1781.2,1780.8,1.70089029]
[1680474193225,0.58218238,1781.2,1780.8,1.114]
[1680474193829,0.58218238,1781.2,1780.8,1.70089029]
[1680474194028,0.58218238,1781.2,1780.9,3.2078]
[1680474195326,2.56745596,1781.3,1780.9,3.2078]
[1680474195927,1.69418238,1781.3,1780.9,3.2078]
[1680474197729,1.69418238,1781.3,1781.1,3.2078]
[1680474202137,1.70518238,1781.3,1781.1,3.2078]
[1680474203039,0.58218238,1781.3,1781.1,3.2078]
[1680474203338,5.19922169,1781.4,1781.1,3.2078]
[1680474203538,5.19922169,1781.4,1781.2,0.16348037]
[1680474205741,0.58218238,1781.3,1781.2,0.16348037]
[1680474206736,4.27078057,1781.4,1781.2,0.16348037]
[1680474207041,0.56380902,1781.5,1781.3,4.3218]
[1680474207243,0.58218238,1781.6,1781.3,4.3218]
[1680474207438,0.58218238,1781.6,1781.5,3.2078]
[1680474207638,1.45545596,1781.6,1781.5,3.2078]
[1680474207942,0.87327358,1781.6,1781.3,4.3218]
[1680474208140,0.58029673,1781.5,1781.2,0.16348037]
[1680474208445,1.123,1781.4,1781.1,3.2078]
[1680474208742,1.0,1781.1,1780.8,0.58689029]
[1680474209140,1.123,1781.2,1780.8,0.58689029]
[1680474209340,1.123,1781.2,1780.9,3.2078]
[1680474211032,1.70329673,1781.3,1780.9,3.2078]
[1680474211342,0.58029673,1781.3,1781.0,4.3218]
[1680474212142,0.58029673,1781.3,1781.2,3.2078]
[1680474213137,1.70329673,1781.3,1780.9,3.79469029]
[1680474213645,1.70329673,1781.3,1781.1,3.2078]
[1680474214747,1.70329673,1781.3,1780.9,3.79469029]
[1680474214943,0.58029673,1781.2,1780.9,3.79469029]
[1680474215241,2.57657031,1781.3,1780.9,3.79469029]
[1680474215447,2.57657031,1781.3,1781.1,3.2078]
[1680474215645,0.58029673,1781.2,1780.9,3.79469029]
[1680474216548,0.58029673,1781.2,1781.1,3.2078]
[1680474218538,0.58029673,1781.2,1781.1,3.30315033]
[1680474218739,3.207,1781.1,1780.7,1.16512814]
[1680474218942,1.121,1780.9,1780.6,0.88162391]
[1680474219144,1.79159217,1781.0,1780.6,4.08942391]
[1680474219349,1.123,1781.0,1780.7,1.88162391]
[1680474219646,1.123,1781.0,1780.8,1.04862425]
[1680474219847,1.123,1781.0,1780.8,1.93024816]
[1680474220042,1.123,1781.0,1780.8,1.04862425]
[1680474220448,1.123,1781.0,1780.8,1.93024816]
[1680474220648,1.123,1781.0,1780.8,1.04862425]
[1680474220843,1.123,1781.0,1780.8,0.04862425]
[1680474221546,1.70329673,1781.0,1780.8,0.04862425]
[1680474222052,6.34019768,1781.1,1780.8,0.04862425]
[1680474222447,1.1361241,1781.1,1780.8,2.05324816]
[1680474222653,0.58029673,1781.1,1780.9,1.0]
[1680474225847,1.45357031,1781.1,1780.9,1.0]
[1680474226157,0.58029673,1781.1,1780.9,1.0]
[1680474226354,0.58029673,1781.1,1781.0,0.0959657]
[1680474230866,0.58029673,1781.1,1781.0,3.3037657]
[1680474231063,1.45357031,1781.2,1781.0,3.3037657]
[1680474232565,0.58029673,1781.2,1781.0,3.3037657]
[1680474233166,1.45357031,1781.2,1781.0,4.18538961]
[1680474235259,0.58029673,1781.1,1781.0,4.18538961]
[1680474236073,1.45357031,1781.2,1781.0,4.18538961]
[1680474236269,0.58029673,1781.1,1781.0,4.18538961]
[1680474236567,1.45357031,1781.2,1781.0,4.18538961]
[1680474237463,0.58029673,1781.2,1781.0,4.18538961]
[1680474240676,1.45357031,1781.4,1781.1,3.27912814]
[1680474240971,0.87327358,1781.4,1781.3,1.115]
[1680474241569,0.87327358,1781.4,1781.2,0.88259826]
[1680474241769,0.58182699,1781.3,1781.2,0.88259826]
[1680474241971,0.58182699,1781.3,1781.1,2.24844897]
[1680474242170,0.58182699,1781.3,1781.2,0.88259826]
[1680474243275,0.58182699,1781.3,1781.1,2.24844897]
[1680474244866,0.58182699,1781.3,1781.2,0.88259826]
[1680474245273,0.58182699,1781.3,1781.1,2.24844897]
[1680474246484,1.45510057,1781.4,1781.1,2.24844897]
[1680474246974,0.58182699,1781.4,1781.2,4.09039826]
[1680474247176,0.58182699,1781.4,1781.3,1.115]
[1680474248782,0.58182699,1781.4,1781.3,1.36395359]
[1680474250585,0.58182699,1781.4,1781.3,0.24895359]
[1680474251274,0.58182699,1781.4,1781.1,1.99759826]
[1680474252982,1.45510057,1781.4,1781.1,1.99759826]
[1680474253983,0.58182699,1781.4,1781.2,1.122]
[1680474254480,1.45510057,1781.4,1781.2,1.122]
[1680474255486,0.58182699,1781.4,1781.2,1.122]
[1680474257684,1.45510057,1781.5,1781.2,4.3298]
[1680474259087,0.58182699,1781.4,1781.2,4.3298]
[1680474259287,1.45510057,1781.5,1781.2,4.3298]
[1680474259684,0.58182699,1781.4,1781.2,1.122]
[1680474260386,1.45510057,1781.5,1781.2,1.122]
[1680474261096,0.58182699,1781.4,1781.2,1.122]
[1680474261295,1.45510057,1781.5,1781.2,1.122]
[1680474261592,0.58182699,1781.5,1781.2,1.122]
[1680474262892,0.58182699,1781.5,1781.2,4.3298]
[1680474263598,2.83839964,1781.6,1781.3,0.24646759]
[1680474263801,2.83839964,1781.6,1781.3,2.12906585]
[1680474263986,2.83839964,1781.6,1781.3,1.12906585]
[1680474264298,2.25657265,1781.6,1781.3,1.12906585]
[1680474264598,2.57710057,1781.7,1781.3,1.12906585]
[1680474264796,3.14701325,1781.7,1781.3,1.12906585]
[1680474265098,0.58182699,1781.6,1781.3,1.12906585]
[1680474265797,2.27373967,1781.7,1781.3,2.12906585]
[1680474266101,1.70382699,1781.7,1781.3,2.12906585]
[1680474266295,1.70382699,1781.7,1781.3,1.12906585]
[1680474267502,1.70382699,1781.7,1781.3,2.12906585]
[1680474267900,1.70382699,1781.7,1781.3,1.12906585]
[1680474268101,0.58182699,1781.7,1781.6,1.114]
[1680474268597,1.14560437,1781.8,1781.6,1.114]
[1680474268896,1.14560437,1781.8,1781.7,1.117]
[1680474269796,0.56377738,1781.8,1781.7,1.117]
[1680474270097,2.28419697,1781.9,1781.7,1.117]
[1680474271099,2.84023286,1781.9,1781.7,1.117]
[1680474271401,3.71350644,1781.9,1781.7,1.117]
[1680474271699,2.84023286,1781.9,1781.7,1.117]
[1680474272197,1.58182699,1781.8,1781.4,5.21239826]
[1680474272695,0.58182699,1781.8,1781.4,5.21239826]
[1680474273489,1.58182699,1781.8,1781.4,5.21239826]
[1680474273699,0.58182699,1781.8,1781.4,5.21239826]
[1680474273998,0.58182699,1781.8,1781.4,4.3298]
[1680474274702,0.58182699,1781.8,1781.4,5.21239826]
[1680474274902,1.58182699,1781.8,1781.4,5.21239826]
[1680474275103,0.58182699,1781.8,1781.4,5.21239826]
[1680474276599,0.58182699,1781.8,1781.6,1.122]
[1680474278397,0.58182699,1781.8,1781.7,0.26108206]
[1680474291205,2.28880288,1781.9,1781.7,4.58588206]
[1680474291409,0.87327358,1782.2,1781.8,1.122]
[1680474291616,0.87327358,1782.2,1782.1,1.122]
[1680474291813,0.87327358,1782.3,1782.1,1.122]
[1680474292001,0.87327358,1782.3,1782.2,1.122]
[1680474292308,5.08107358,1782.3,1782.1,1.122]
[1680474292509,1.0,1782.2,1781.9,1.122]
[1680474292927,3.2078,1782.0,1781.9,1.122]
[1680474293314,1.0,1782.2,1781.9,1.122]
[1680474293515,1.0,1782.2,1781.9,1.53312023]
[1680474293814,0.87327358,1782.3,1782.0,1.122]
[1680474294015,1.16631127,1782.1,1782.0,1.122]
[1680474294219,0.87148732,1782.3,1782.0,1.122]
[1680474294520,0.87148732,1782.3,1782.0,4.3298]
[1680474295225,4.07928732,1782.4,1782.2,1.122]
[1680474295430,3.2078,1782.4,1782.2,1.122]
[1680474297729,0.56513901,1782.5,1782.3,1.122]
[1680474297931,5.74106467,1782.6,1782.3,1.122]
[1680474298428,4.07928732,1782.6,1782.3,1.122]
[1680474299126,4.07928732,1782.6,1782.5,1.122]
[1680474299323,3.2078,1782.6,1782.5,1.122]
[1680474300527,3.2078,1782.6,1782.3,1.122]
[1680474301231,0.55826585,1782.7,1782.5,1.122]
[1680474301431,6.75638302,1782.8,1782.5,1.122]
[1680474301630,5.75638302,1782.8,1782.5,1.122]
[1680474302132,6.31466495,1782.8,1782.5,1.122]
[1680474302331,6.31466495,1782.8,1782.7,1.122]
[1680474302332,1.42976925,1782.8,1782.7,1.122]
[1680474302533,0.87148732,1783.1,1782.7,2.244]
[1680474302832,0.87148732,1783.1,1783.0,1.122]
[1680474304426,0.87148732,1783.2,1783.0,1.122]
[1680474305132,0.87148732,1783.3,1783.0,1.122]
[1680474305926,5.73187658,1783.4,1783.1,0.95254739]
[1680474306126,0.87148732,1783.3,1783.1,0.95254739]
[1680474306331,5.73187658,1783.4,1783.1,0.95254739]
[1680474306530,0.87148732,1783.3,1783.1,0.95254739]
[1680474306727,5.73187658,1783.4,1783.1,0.95254739]
[1680474307630,3.2078,1783.4,1783.1,0.95254739]
[1680474307933,4.07928732,1783.4,1783.1,0.95254739]
[1680474308435,0.57413301,1783.6,1783.4,1.122]
[1680474308732,0.87148732,1783.9,1783.5,2.244]
[1680474308929,4.17928732,1784.0,1783.8,1.117]
[1680474309129,0.11169999,1783.7,1783.6,1.121]
[1680474309432,0.11169999,1783.7,1783.6,2.242]
[1680474309933,0.11169999,1783.7,1783.6,1.121]
[1680474311131,0.11169999,1783.7,1783.6,2.4857076]
[1680474313841,0.11169999,1783.7,1783.6,3.5987076]
[1680474315634,0.11169999,1783.7,1783.6,6.8065076]
[1680474316436,0.11169999,1783.7,1783.6,12.3945076]
[1680474318537,0.11169999,1783.7,1783.6,6.8065076]
[1680474318740,0.11169999,1783.7,1783.6,1.3647076]
[1680474318937,0.11169999,1783.7,1783.6,2.4857076]
[1680474322044,0.11169999,1783.7,1783.6,3.6067076]
[1680474322738,3.3078,1784.0,1783.7,1.111]
[1680474322739,0.1,1784.0,1783.7,1.111]
[1680474322933,0.1,1784.0,1783.9,1.119]
[1680474324241,0.15,1785.0,1784.0,12.823]
[1680474324439,0.15,1785.0,1784.8,1.111]
[1680474324943,0.15,1785.0,1784.7,1.12]
[1680474325939,0.15,1785.0,1784.8,3.2078]
[1680474326140,0.15,1785.0,1784.9,1.38730313]
[1680474326340,0.15,1785.0,1784.8,3.2078]
[1680474327740,0.15,1785.0,1784.7,1.12]
[1680474328243,0.15,1785.0,1784.7,4.3278]
[1680474330042,1.26,1785.0,1784.6,1.12]
[1680474330345,1.0,1784.9,1784.6,1.12]
[1680474331234,0.15,1785.0,1784.7,1.121]
[1680474331439,1.0,1784.9,1784.7,1.121]
[1680474331851,1.15,1785.0,1784.7,1.121]
[1680474333446,0.15,1785.0,1784.7,1.121]
[1680474333647,0.15,1785.0,1784.7,4.3288]
[1680474333843,0.15,1785.0,1784.9,1.111]
[1680474335543,0.15,1785.0,1784.9,4.3188]
[1680474337347,15.44110002,1785.3,1785.0,1.0]
[1680474337545,3.2078,1785.4,1785.2,1.119]
[1680474337848,1.0,1785.5,1785.3,1.121]
[1680474338046,1.0,1785.5,1785.3,0.63856532]
[1680474338747,2.67264616,1785.5,1785.3,0.63856532]
[1680474338947,1.0,1785.5,1785.3,0.63856532]
[1680474339147,3.2078,1785.6,1785.4,1.121]
[1680474339344,4.2078,1785.6,1785.5,1.119]
[1680474339943,17.64997362,1785.6,1785.5,1.119]
[1680474340143,17.64996832,1785.6,1785.5,1.119]
[1680474340344,4.2078,1785.6,1785.5,1.12]
[1680474340545,1.0,1785.5,1785.3,1.112]
[1680474341054,3.2078,1785.6,1785.4,2.90437161]
[1680474341348,4.85523408,1785.6,1785.5,1.112]
[1680474341745,4.85523408,1785.6,1785.5,2.8963459]
[1680474341950,18.29712933,1785.6,1785.5,2.8963459]
[1680474342352,1.64743408,1785.6,1785.5,2.8963459]
[1680474342550,5.07928732,1785.8,1785.5,2.8963459]
[1680474342950,5.07928732,1785.8,1785.5,1.112]
[1680474343654,14.31254327,1785.7,1785.5,1.112]
[1680474343857,0.87148732,1785.7,1785.5,1.112]
[1680474344052,13.44117729,1785.6,1785.5,1.112]
[1680474344253,4.07928732,1785.8,1785.6,1.76388719]
[1680474344460,13.44090005,1785.7,1785.6,1.76388719]
[1680474345157,14.31238737,1785.7,1785.4,1.12]
[1680474345360,17.64870005,1785.6,1785.4,1.12]
[1680474345658,14.44132954,1785.5,1785.4,1.12]
[1680474345955,0.01119515,1786.2,1785.5,13.129]
[1680474346158,0.01119515,1786.2,1786.1,1.112]
[1680474347652,0.01119515,1786.2,1786.1,2.228]
[1680474347849,0.01119515,1786.2,1786.1,3.228]
[1680474348156,4.07477574,1786.9,1786.1,3.228]
[1680474348157,5.07477574,1786.9,1786.2,1.0]
[1680474348356,2.01697574,1787.0,1786.6,4.3268]
[1680474348554,1.0,1786.8,1786.6,3.2078]
[1680474348858,1.15,1787.0,1786.7,1.12]
[1680474349056,0.7134468,1787.0,1786.8,1.12]
[1680474349555,1.0,1786.9,1786.6,1.12]
[1680474350753,0.7134468,1787.0,1786.6,1.12]
[1680474352156,0.7134468,1787.0,1786.4,3.2078]
[1680474352157,0.7134468,1787.0,1786.7,1.12]
[1680474352361,3.2078,1786.9,1786.7,1.12]
[1680474352663,1.0,1786.8,1786.7,1.12]
[1680474352964,1.0,1786.8,1786.7,3.21853405]
[1680474353261,3.2078,1786.9,1786.7,3.21853405]
[1680474356156,1.0,1786.8,1786.7,3.21853405]
[1680474356359,3.2078,1786.9,1786.7,3.21853405]
[1680474357457,0.7134468,1787.0,1786.9,1.116]
[1680474357661,0.7134468,1787.0,1786.9,2.228]
[1680474361962,0.7134468,1787.0,1786.8,2.20055344]
[1680474362156,3.2078,1786.9,1786.6,1.113]
[1680474364262,3.2078,1786.9,1786.8,1.12]
[1680474364465,0.7134468,1787.0,1786.8,1.12]
[1680474365062,0.7134468,1787.0,1786.8,4.3278]
[1680474365868,0.7134468,1787.0,1786.8,3.2078]
[1680474366073,0.7134468,1787.0,1786.9,1.12]
[1680474366565,0.7134468,1787.0,1786.9,2.12]
[1680474366760,0.7134468,1787.0,1786.9,3.24]
[1680474367069,3.76608807,1787.5,1787.0,1.0]
[1680474367265,3.76608807,1787.5,1787.4,1.119]
[1680474367572,2.24344779,1787.5,1787.4,0.63710366]
[1680474367774,1.0,1787.7,1787.4,0.63710366]
[1680474367978,1.0,1787.6,1787.5,3.2078]
[1680474368270,0.55987416,1787.7,1787.5,1.119]
[1680474368474,1.0,1787.8,1787.6,1.119]
[1680474369173,1.0,1787.8,1787.6,0.96481559]
[1680474369563,0.55887573,1787.8,1787.6,0.96481559]
[1680474369763,3.2078,1787.9,1787.7,2.30156116]
[1680474370574,4.91561302,1787.9,1787.7,2.30156116]
[1680474370969,1.70781302,1787.9,1787.7,2.30156116]
[1680474371174,2.22,1788.0,1787.7,2.30156116]
[1680474371365,1.77726785,1788.0,1787.7,2.30156116]
[1680474371572,4.2078,1787.9,1787.7,2.30156116]
[1680474371768,1.0,1787.8,1787.7,2.30156116]
[1680474372384,1.0,1787.8,1787.5,1.118]
[1680474372679,3.2078,1787.7,1787.5,1.118]
[1680474372879,1.0,1787.6,1787.5,1.118]
[1680474373077,1.0,1787.6,1787.3,3.2078]
[1680474373078,1.0,1787.6,1787.3,1.113]
[1680474373275,1.0,1787.6,1787.1,1.118]
[1680474373276,3.2078,1787.5,1787.1,1.118]
[1680474373478,1.0,1787.4,1787.1,1.118]
[1680474374378,3.2078,1787.3,1787.1,1.118]
[1680474374677,1.0,1787.2,1787.1,1.118]
[1680474374881,1.0,1787.2,1786.9,1.118]
[1680474375081,2.112,1787.2,1786.7,4.3178]
[1680474375281,3.2078,1787.3,1786.7,4.3178]
[1680474375282,3.2078,1787.1,1786.8,1.118]
[1680474375675,1.118,1787.3,1786.9,3.2078]
[1680474376082,1.118,1787.3,1786.8,1.118]
[1680474376777,1.118,1787.3,1786.8,2.118]
[1680474376978,4.3198,1787.3,1786.8,1.113]
[1680474377179,1.0,1787.2,1786.8,1.113]
[1680474377478,4.3198,1787.3,1786.8,1.113]
[1680474377479,4.87986981,1787.3,1786.8,1.113]
[1680474377982,1.0,1787.2,1786.8,1.113]
[1680474378285,3.2078,1787.1,1786.8,1.113]
[1680474379480,3.2078,1787.1,1787.0,1.118]
[1680474380488,0.56006981,1787.3,1787.0,1.118]
[1680474380683,4.3258,1787.4,1787.0,1.118]
[1680474381678,3.2078,1787.4,1787.2,1.118]
[1680474381986,3.75438342,1787.4,1787.2,1.118]
[1680474383178,3.75438342,1787.4,1787.3,1.11]
[1680474383377,0.54658342,1787.4,1787.3,1.11]
[1680474383582,3.2078,1787.6,1787.3,1.11]
[1680474383789,6.18677574,1787.8,1787.3,4.3178]
[1680474384091,1.0,1787.6,1787.3,1.11]
[1680474384583,6.18677574,1787.8,1787.3,1.11]
[1680474384790,1.0,1787.6,1787.3,1.11]
[1680474384991,6.18677574,1787.8,1787.3,1.11]
[1680474385181,1.0,1787.6,1787.3,1.11]
[1680474385384,6.18677574,1787.8,1787.3,1.11]
[1680474385584,1.0,1787.6,1787.3,1.11]
[1680474386092,13.42608248,1787.5,1787.3,1.11]
[1680474386290,13.42608248,1787.5,1787.4,2.30316903]
[1680474386697,13.42608248,1787.6,1787.3,1.11]
[1680474386893,13.42608248,1787.5,1787.3,1.11]
[1680474387094,0.86697574,1787.7,1787.3,1.11]
[1680474387095,4.07477574,1787.6,1787.3,1.11]
[1680474387294,13.4260347,1787.5,1787.3,1.11]
[1680474387499,1.0,1787.4,1787.2,1.118]
[1680474387695,13.4260347,1787.3,1787.2,1.118]
[1680474387896,19.73681044,1787.3,1786.7,1.0]
[1680474388098,4.3258,1786.8,1786.3,3.2078]
[1680474388306,4.3258,1786.8,1786.3,4.3258]
[1680474388598,1.0,1786.7,1786.3,4.3258]
[1680474388804,1.0,1786.7,1786.5,1.118]
[1680474389198,3.2078,1786.8,1786.5,1.118]